{"text_format":"1","workbook":"xlsx","n_sheets":3,"sheets":["Команды БСМ","Игры НБА","Расписание"],"not_rendered":{"charts":0,"images":1,"macros":1,"external_links":0,"defined_names":1,"comments":0,"pivot_tables":0},"unopened":[],"bounds":{"document_bytes":16777216,"sheet_cells":100000,"rows_first":2000,"rows_last":500,"rows_between":2000,"halvings":0,"cell_chars":16384,"cell_head_chars":4096},"cells_cut":0,"cells_raw":0,"read":"whole","date_system":"1900"}

{"sheet":"Команды БСМ","index":0,"n_rows":242,"n_cols":13,"rows_kept":242,"cut":false,"hidden":false,"merged":[[0,0,0,4]]}
["БСМ 2022-2023, 2 ТУР."]
["№","А","Игрок","НБА","БСМ","рез.","день1","день2","день3","id","ОСНОВА","игр","ОЧКИ"]
[1,"З","CJ McCollum","NO","Атл",{"$f":"MAX(G3,H3,I3)","v":0},null,null,null,5161,null,null,{"$f":"SUM(F3:F8)+N3","v":0}]
[4,"З","Russell Westbrook","LAL","Атл",0,null,null,null,4390,null,null,{"$f":"SUM(F9:F12)","v":0}]
[2,"З","Tyrese Maxey","PHI","Атл",0,null,null,null,6413,null,null,{"$f":"SUM(M3:M4)","v":0}]
[5,"З","Malik Beasley","UTA","Атл",0,null,null,null,5650,null,null," "]
[6,"Ф","Kevin Durant","BKN","Атл",0,null,null,null,4244]
[9,"Ф","Saddiq Bey","DET","Атл",0,null,null,null,6411]
[3,"Ф","Grayson Allen","MIL","Атл",0,null,null,null,6032]
[7,"Ф","Michael Porter Jr.","DEN","Атл",0,null,null,null,6025]
[8,"Ц","Julius Randle","NYK","Атл",0,null,null,null,5318]
[10,"Ц","Kevin Love","CLE","Атл",0,null,null,null,4391]
[3,"Ц","Nikola Vucevic","CHI","Бос",0,null,null,null,4897,null,null,{"$f":"SUM(F13:F18)+N13","v":0}]
[9,"З","Kelly Oubre Jr.","CHA","Бос",0,null,null,null,5475,null,null,{"$f":"SUM(F19:F22)","v":0}]
[10,"Ф","Walker Kessler","UTA","Бос",0,null,null,null,6712,null,null,{"$f":"SUM(M13:M14)","v":0}]
[2,"З","Monte Morris","WAS","Бос",0,null,null,null,5864]
[4,"Ф","Alec Burks","DET","Бос",0,null,null,null,4893]
[1,"Ф","Rui Hachimura","WAS","Бос",0,null,null,null,6171]
[5,"Ц","Richaun Holmes","SAC","Бос",0,null,null,null,5497]
[6,"З","Hamidou Diallo","DET","Бос",0,null,null,null,6056]
[8,"Ф","Joe Ingles","MIL","Бос",0,null,null,null,5393]
[7,"З","Bennedict Mathurin","IND","Бос",0,null,null,null,6696]
[8,"З","Stephen Curry","GSW","Ваш",0,null,null,null,4612,null,null,{"$f":"SUM(F23:F28)+N23","v":0}]
[1,"З","Zach LaVine","CHI","Ваш",0,null,null,null,5324,null,null,{"$f":"SUM(F29:F32)","v":0}]
[7,"Ф","Paul George","LAC","Ваш",0,null,null,null,4725,null,null,{"$f":"SUM(M23:M24)","v":0}]
[3,"Ф","Eric Gordon","HOU","Ваш",0,null,null,null,4469,null,null," "]
[5,"Ц","Andre Drummond","CHI","Ваш",0,null,null,null,5015]
[10,"З","LaMelo Ball","CHA","Ваш",0,null,null,null,6395]
[2,"Ц","JaVale McGee","DAL","Ваш",0,null,null,null,4480]
[6,"Ц","Mitchell Robinson","NYK","Ваш",0,null,null,null,6047]
[4,"Ф","KJ Martin","HOU","Ваш",0,null,null,null,6444]
[9,"Ф","Draymond Green","GSW","Ваш",0,null,null,null,5069]
[4,"З","Coby White","CHI","ГСУ",0,null,null,null,6169,null,null,{"$f":"SUM(F33:F38)+N33","v":0}]
[1,"З","Gary Harris","ORL","ГСУ",0,null,null,null,5330,null,null,{"$f":"SUM(F39:F42)","v":0}]
[2,"З","Isaac Okoro","CLE","ГСУ",0,null,null,null,6397,null,null,{"$f":"SUM(M33:M34)","v":0}]
[7,"З","Kendrick Nunn","LAL","ГСУ",0,null,null,null,6114]
[5,"Ф","Devin Vassell","SAS","ГСУ",0,null,null,null,6403]
[8,"Ф","Derrick Jones Jr.","CHI","ГСУ",0,null,null,null,5747]
[3,"Ф","Doug McDermott","SAS","ГСУ",0,null,null,null,5322]
[6,"Ф","Trey Lyles","SAC","ГСУ",0,null,null,null,5472]
[9,"Ц","Jakob Poeltl","SAS","ГСУ",0,null,null,null,5640]
[10,"Ц","Jusuf Nurkic","POR","ГСУ",0,null,null,null,5327]
[1,"З","Damian Lillard","POR","Дал",0,null,null,null,5012,null,null,{"$f":"SUM(F43:F48)+N43","v":0}]
[3,"З","Dejounte Murray","ATL","Дал",0,null,null,null,5660,null,null,{"$f":"SUM(F49:F52)","v":0}]
[2,"З","Jalen Brunson","NYK","Дал",0,null,null,null,6044,null,null,{"$f":"SUM(M43:M44)","v":0}]
[7,"З","Shake Milton","PHI","Дал",0,null,null,null,6065,null,null," "]
[8,"Ф","Jimmy Butler","MIA","Дал",0,null,null,null,4912]
[10,"Ф","Jabari Smith Jr","HOU","Дал",0,null,null,null,6693]
[4,"Ф","Kevin Huerter","SAC","Дал",0,null,null,null,6030]
[5,"Ф","Justise Winslow","POR","Дал",0,null,null,null,5470]
[6,"Ц","Anthony Davis","LAL","Дал",0,null,null,null,5007]
[9,"Ц","Brook Lopez","MIL","Дал",0,null,null,null,4472]
[1,"З","Bones Hyland","DEN","Ден",0,null,null,null,6568,null,null,{"$f":"SUM(F53:F58)+N53","v":0}]
[2,"З","Tre Jones","SAS","Ден",0,null,null,null,6433,null,null,{"$f":"SUM(F59:F62)","v":0}]
[3,"З","Joshua Primo","SAS","Ден",0,null,null,null,6554,null,null,{"$f":"SUM(M53:M54)","v":0}]
[6,"З","Moses Moody","GSW","Ден",0,null,null,null,6556]
[7,"Ф","Jayson Tatum","BOS","Ден",0,null,null,null,5765]
[9,"Ф","Kevin Porter Jr.","HOU","Ден",0,null,null,null,6218]
[4,"Ф","Obi Toppin","NYK","Ден",0,null,null,null,6400]
[5,"Ф","Ochai Agbaji","UTA","Ден",0,null,null,null,6704]
[8,"Ц","James Wiseman","GSW","Ден",0,null,null,null,6356]
[10,"Ц","Onyeka Okongwu","ATL","Ден",0,null,null,null,6398]
[4,"З","Jordan Poole","GSW","Инд",0,null,null,null,6216,null,null,{"$f":"SUM(F63:F68)+N63","v":0}]
[1,"З","Jordan Clarkson","UTA","Инд",0,null,null,null,5357,null,null,{"$f":"SUM(F69:F72)","v":0}]
[2,"З","Max Strus","MIA","Инд",0,null,null,null,6267,null,null,{"$f":"SUM(M63:M64)","v":0}]
[5,"З","Duane Washington Jr.","IND","Инд",0,null,null,null,6607]
[6,"Ф","Caris LeVert","CLE","Инд",{"$f":"MAX(G67,H67,I67)","v":0},null,null,null,5651]
[9,"Ф","David Roddy","MEM","Инд",0,null,null,null,6713]
[3,"Ф","Sam Hauser","BOS","Инд",0,null,null,null,6619]
[7,"Ф","Mike Muscala","OKC","Инд",0,null,null,null,5214,null,null," "]
[8,"Ц","Montrezl Harrell","CHA","Инд",0,null,null,null,5492]
[10,"Ц","Al Horford","BOS","Инд",0,null,null,null,4245]
[3,"З","Fred VanVleet","TOR","Клв",0,null,null,null,5727,null,null,{"$f":"SUM(F73:F78)+N73","v":0}]
[4,"З","Immanuel Quickley","NYK","Клв",0,null,null,null,6417,null,null,{"$f":"SUM(F79:F82)","v":0}]
[1,"З","Bruce Brown","DEN","Клв",0,null,null,null,6053,null,null,{"$f":"SUM(M73:M74)","v":0}]
[7,"З","Landry Shamet","PHO","Клв",0,null,null,null,6037]
[8,"Ф","Pascal Siakam","TOR","Клв",0,null,null,null,5658]
[9,"Ф","Aaron Gordon","DEN","Клв",0,null,null,null,5295]
[2,"Ф","Nickeil Alexander-Walker","UTA","Клв",0,null,null,null,6205]
[5,"Ф","Dorian Finney-Smith","DAL","Клв",0,null,null,null,5693]
[6,"Ц","Clint Capela","ATL","Клв",0,null,null,null,5336]
[10,"Ц","Santi Aldama","MEM","Клв",0,null,null,null,6572]
[1,"З","Kyrie Irving","BKN","ЛАЛ",0,null,null,null,4840,null,null,{"$f":"SUM(F83:F88)+N83","v":0}]
[2,"З","D'Angelo Russell","MIN","ЛАЛ",0,null,null,null,5433,null,null,{"$f":"SUM(F89:F92)","v":0}]
[6,"З","Mike Conley","UTA","ЛАЛ",0,null,null,null,4246,null,null,{"$f":"SUM(M83:M84)","v":0}]
[5,"З","Kyle Lowry","MIA","ЛАЛ",0,null,null,null,4152]
[8,"Ф","Joel Embiid","PHI","ЛАЛ",0,null,null,null,5294]
[10,"Ф","Giannis Antetokounmpo","MIL","ЛАЛ",0,null,null,null,5185]
[3,"Ф","Ziaire Williams","MEM","ЛАЛ",0,null,null,null,6552,null,null," "]
[4,"Ц","Nikola Jokic","DEN","ЛАЛ",0,null,null,null,5352]
[7,"Ц","Kelly Olynyk","DET","ЛАЛ",0,null,null,null,5164]
[9,"З","Derrick Rose","NYK","ЛАЛ",0,null,null,null,4387]
[4,"З","Tyler Herro","MIA","Май",0,null,null,null,6175,null,null,{"$f":"SUM(F93:F98)+N93","v":0}]
[1,"З","Terry Rozier","CHA","Май",0,null,null,null,5476,null,null,{"$f":"SUM(F99:F102)","v":0}]
[2,"З","Cole Anthony","ORL","Май",0,null,null,null,6407,null,null,{"$f":"SUM(M93:M94)","v":0}]
[9,"З","Tim Hardaway Jr.","DAL","Май",0,null,null,null,5194]
[6,"З","De'Anthony Melton","PHI","Май",0,null,null,null,6057]
[10,"Ф","Norman Powell","LAC","Май",0,null,null,null,5506]
[3,"Ф","Gordon Hayward","CHA","Май",0,null,null,null,4724]
[5,"Ф","Duncan Robinson","MIA","Май",0,null,null,null,6073]
[7,"Ф","Jalen Williams","OKC","Май",0,null,null,null,6702]
[8,"Ц","Domantas Sabonis","SAC","Май",0,null,null,null,5642]
[4,"З","Luguentz Dort","OKC","Мем",0,null,null,null,6254,null,null,{"$f":"SUM(F103:F108)+N103","v":0}]
[1,"З","Seth Curry","BKN","Мем",0,null,null,null,5245,null,null,{"$f":"SUM(F109:F112)","v":0}]
[2,"З","Spencer Dinwiddie","DAL","Мем",0,null,null,null,5349,null,null,{"$f":"SUM(M103:M104)","v":0}]
[8,"З","Malachi Flynn","TOR","Мем",0,null,null,null,6421]
[6,"З","Bogdan Bogdanovic","ATL","Мем",0,null,null,null,5338]
[9,"Ф","Will Barton","WAS","Мем",0,null,null,null,5074]
[3,"Ф","Evan Fournier","NYK","Мем",0,null,null,null,5054,null,null," "]
[5,"Ф","Terence Davis","SAC","Мем",0,null,null,null,6280]
[7,"Ф","Robert Covington","LAC","Мем",0,null,null,null,5253]
[10,"Ц","Christian Wood","DAL","Мем",0,null,null,null,5583]
[1,"З","Luka Doncic","DAL","Мил",0,null,null,null,6014,null,null,{"$f":"SUM(F113:F118)+N113","v":0}]
[2,"З","Jrue Holiday","MIL","Мил",0,null,null,null,4622,null,null,{"$f":"SUM(F119:F122)","v":0}]
[3,"З","Killian Hayes","DET","Мил",0,null,null,null,6399,null,null,{"$f":"SUM(M113:M114)","v":0}]
[5,"З","Svi Mykhailiuk","TOR","Мил",0,null,null,null,6058]
[4,"Ф","Kyle Kuzma","WAS","Мил",0,null,null,null,5840]
[8,"Ф","Darius Bazley","OKC","Мил",0,null,null,null,6211]
[6,"Ф","Otto Porter Jr.","TOR","Мил",0,null,null,null,5154]
[7,"Ф","Amir Coffey","LAC","Мил",0,null,null,null,6315]
[9,"Ц","Bobby Portis","MIL","Мил",0,null,null,null,5482]
[10,"Ц","Mo Bamba","ORL","Мил",0,null,null,null,6017]
[2,"З","Buddy Hield","IND","Мин",0,null,null,null,5637,null,null,{"$f":"SUM(F123:F128)+N123","v":0}]
[1,"З","Tyus Jones","MEM","Мин",0,null,null,null,5484,null,null,{"$f":"SUM(F129:F132)","v":0}]
[3,"З","Jaylen Nowell","MIN","Мин",0,null,null,null,6231,null,null,{"$f":"SUM(M123:M124)","v":0}]
[6,"З","Cameron Thomas","BKN","Мин",0,null,null,null,6569,null,null," "]
[5,"Ф","Trendon Watford","POR","Мин",0,null,null,null,6604]
[8,"Ф","Cam Reddish","NYK","Мин",0,null,null,null,6172]
[4,"Ф","Ben Simmons","BKN","Мин",0,null,null,null,5600]
[7,"Ф","Harrison Barnes","SAC","Мин",0,null,null,null,5013]
[9,"Ц","Rudy Gobert","MIN","Мин",{"$f":"MAX(G131,H131,I131)","v":0},null,null,null,5197]
[10,"Ц","Jalen Duren","DET","Мин",0,null,null,null,6703]
[1,"З","Cade Cunningham","DET","Н-О",0,null,null,null,6512,null,null,{"$f":"SUM(F133:F138)+N133","v":0}]
[2,"З","Collin Sexton","CLE","Н-О",0,null,null,null,6019,null,null,{"$f":"SUM(F139:F142)","v":0}]
[3,"З","Nassir Little","POR","Н-О",0,null,null,null,6213,null,null,{"$f":"SUM(M133:M134)","v":0}]
[5,"З","Caleb Martin","MIA","Н-О",0,null,null,null,6275]
[6,"З","R.J. Hampton","ORL","Н-О",0,null,null,null,6416]
[9,"Ф","OG Anunoby","TOR","Н-О",0,null,null,null,5836]
[4,"Ф","Alperen Sengun","HOU","Н-О",0,null,null,null,6558]
[7,"Ф","Patrick Williams","CHI","Н-О",0,null,null,null,6396]
[8,"Ф","Jerami Grant","POR","Н-О",0,null,null,null,5350]
[10,"Ц","Lauri Markkanen","CLE","Н-О",0,null,null,null,5769]
[1,"З","Desmond Bane","MEM","Окл",0,null,null,null,6422,null,null,{"$f":"SUM(F143:F148)+N143","v":0}]
[2,"З","Derrick White","BOS","Окл",0,null,null,null,5842,null,null,{"$f":"SUM(F149:F152)","v":0}]
[3,"З","Josh Giddey","OKC","Окл",0,null,null,null,6548,null,null,{"$f":"SUM(M143:M144)","v":0}]
[7,"З","Tre Mann","OKC","Окл",0,null,null,null,6560,null,null," "]
[5,"З","Reggie Jackson","LAC","Окл",0,null,null,null,4906]
[9,"Ф","Tobias Harris","PHI","Окл",0,null,null,null,4901]
[4,"Ф","DeAndre Hunter","ATL","Окл",0,null,null,null,6166]
[6,"Ф","Grant Williams","BOS","Окл",0,null,null,null,6210]
[8,"Ц","Naz Reid","MIN","Окл",0,null,null,null,6253]
[10,"Ц","Aleksej Pokusevski","OKC","Окл",0,null,null,null,6409]
[3,"З","Darius Garland","CLE","Орл",0,null,null,null,6167,null,null,{"$f":"SUM(F153:F158)+N153","v":0}]
[1,"З","Malik Monk","SAC","Орл",0,null,null,null,5824,null,null,{"$f":"SUM(F159:F162)","v":0}]
[5,"З","Marcus Smart","BOS","Орл",0,null,null,null,5317,null,null,{"$f":"SUM(M153:M154)","v":0}]
[6,"З","John Wall","LAC","Орл",0,null,null,null,4716]
[9,"Ф","John Collins","ATL","Орл",0,null,null,null,5832]
[10,"Ф","Franz Wagner","ORL","Орл",0,null,null,null,6550]
[2,"Ф","Luke Kennard","LAC","Орл",0,null,null,null,5825]
[4,"Ф","Jake LaRavia","MEM","Орл",0,null,null,null,6709]
[7,"Ц","Brandon Clarke","MEM","Орл",0,null,null,null,6209]
[8,"Ц","Zach Collins","SAS","Орл",0,null,null,null,5823]
[1,"З","Malcolm Brogdon","BOS","С-А",0,null,null,null,5667,null,null,{"$f":"SUM(F163:F168)+N163","v":0}]
[3,"З","Anfernee Simons","POR","С-А",0,null,null,null,6035,null,null,{"$f":"SUM(F169:F172)","v":0}]
[4,"З","Jalen Green","HOU","С-А",0,null,null,null,6513,null,null,{"$f":"SUM(M163:M164)","v":0}]
[2,"Ф","Bojan Bogdanovic","UTA","С-А",0,null,null,null,4913,null,null," "]
[5,"Ф","PJ Washington","CHA","С-А",0,null,null,null,6174]
[6,"Ф","Shaedon Sharpe","POR","С-А",0,null,null,null,6697]
[7,"Ф","Trey Murphy III","NO","С-А",0,null,null,null,6559]
[8,"Ф","Cameron Johnson","PHO","С-А",0,null,null,null,6173]
[10,"Ц","Deandre Ayton","PHO","С-А",0,null,null,null,5958]
[9,"Ц","Jarred Vanderbilt","UTA","С-А",0,null,null,null,6052]
[4,"З","Josh Richardson","SAS","Сак",0,null,null,null,5500,null,null,{"$f":"SUM(F173:F178)+N173","v":0}]
[1,"З","Talen Horton-Tucker","LAL","Сак",0,null,null,null,6234,null,null,{"$f":"SUM(F179:F182)","v":0}]
[7,"З","Josh Hart","POR","Сак",0,null,null,null,5843,null,null,{"$f":"SUM(M173:M174)","v":0}]
[6,"З","Davion Mitchell","SAC","Сак",0,null,null,null,6551]
[8,"Ф","Gary Trent Jr.","TOR","Сак",0,null,null,null,6048]
[9,"Ф","Cedi Osman","CLE","Сак",0,null,null,null,5491]
[2,"Ф","Tari Eason","HOU","Сак",0,null,null,null,6707]
[3,"Ф","Sandro Mamukelashvili","MIL","Сак",0,null,null,null,6596]
[5,"Ц","Jarrett Allen","CLE","Сак",0,null,null,null,5835]
[10,"Ц","Isaiah Stewart","DET","Сак",0,null,null,null,6408]
[3,"З","Donovan Mitchell","UTA","Фил",0,null,null,null,5826,null,null,{"$f":"SUM(F183:F188)+N183","v":0}]
[1,"З","Chris Duarte","IND","Фил",0,null,null,null,6555,null,null,{"$f":"SUM(F189:F192)","v":0}]
[2,"З","Jalen Suggs","ORL","Фил",0,null,null,null,6516,null,null,{"$f":"SUM(M183:M184)","v":0}]
[5,"З","Josh Green","DAL","Фил",0,null,null,null,6410]
[6,"Ф","Jeremy Sochan","SAS","Фил",0,null,null,null,6699]
[9,"Ф","Herbert Jones","NO","Фил",0,null,null,null,6577]
[4,"Ф","Jonathan Kuminga","GSW","Фил",0,null,null,null,6549,null,null," "]
[7,"Ф","Jaden McDaniels","MIN","Фил",0,null,null,null,6420]
[8,"Ц","Evan Mobley","CLE","Фил",0,null,null,null,6514]
[10,"Ц","Jalen Smith","IND","Фил",0,null,null,null,6402]
[2,"З","De'Aaron Fox","SAC","Фин",0,null,null,null,5767,null,null,{"$f":"SUM(F193:F198)+N193","v":0}]
[3,"З","Jamal Murray","DEN","Фин",0,null,null,null,5638,null,null,{"$f":"SUM(F199:F202)","v":0}]
[6,"З","Patty Mills","BKN","Фин",{"$f":"MAX(G195,H195,I195)","v":0},null,null,null,4660,null,null,{"$f":"SUM(M193:M194)","v":0}]
[4,"З","James Bouknight","CHA","Фин",0,null,null,null,6553]
[8,"Ф","Devin Booker","PHO","Фин",0,null,null,null,5473]
[9,"Ф","Brandon Ingram","NO","Фин",0,null,null,null,5601]
[1,"Ф","Jordan Nwora","MIL","Фин",0,null,null,null,6437]
[5,"Ф","Jeff Green","DEN","Фин",0,null,null,null,4247]
[7,"Ц","Bam Adebayo","MIA","Фин",0,null,null,null,5827]
[10,"Ц","Isaiah Hartenstein","NYK","Фин",0,null,null,null,5856]
[1,"З","James Harden","PHI","Хью",0,null,null,null,4563,null,null,{"$f":"SUM(F203:F208)+N203","v":0}]
[2,"З","RJ Barrett","NYK","Хью",0,null,null,null,6165,null,null,{"$f":"SUM(F209:F212)","v":0}]
[3,"З","Chris Paul","PHO","Хью",0,null,null,null,3930,null,null,{"$f":"SUM(M203:M204)","v":0}]
[7,"Ф","Andrew Wiggins","GSW","Хью",0,null,null,null,5292]
[5,"Ф","Scottie Barnes","TOR","Хью",0,null,null,null,6515]
[8,"Ф","Lonnie Walker IV","LAL","Хью",0,null,null,null,6029]
[4,"Ф","Kawhi Leonard","LAC","Хью",0,null,null,null,4896,null,null," "]
[6,"Ц","Daniel Gafford","WAS","Хью",0,null,null,null,6226]
[9,"Ц","Nicolas Claxton","BKN","Хью",0,null,null,null,6219]
[10,"Ц","Mark Williams","CHA","Хью",0,null,null,null,6705]
[1,"З","Ja Morant","MEM","Чик",0,null,null,null,6164,null,null,{"$f":"SUM(F213:F218)+N213","v":0}]
[3,"З","Kentavious Caldwell-Pope","DEN","Чик",0,null,null,null,5159,null,null,{"$f":"SUM(F219:F222)","v":0}]
[2,"З","Victor Oladipo","MIA","Чик",0,null,null,null,5153,null,null,{"$f":"SUM(M213:M214)","v":0}]
[6,"З","Payton Pritchard","BOS","Чик",0,null,null,null,6418]
[5,"Ф","Paolo Banchero","ORL","Чик",0,null,null,null,6691]
[9,"Ф","Zion Williamson","NO","Чик",0,null,null,null,6163]
[4,"З","Anthony Edwards","MIN","Чик",0,null,null,null,6355]
[7,"Ф","Jalen Johnson","ATL","Чик",0,null,null,null,6562]
[8,"Ц","Wendell Carter Jr.","ORL","Чик",0,null,null,null,6018]
[10,"Ц","Jonas Valanciunas","NO","Чик",0,null,null,null,4886]
[3,"З","Trae Young","ATL","Шар",0,null,null,null,6016,null,null,{"$f":"SUM(F223:F228)+N223","v":0}]
[1,"З","Bradley Beal","WAS","Шар",0,null,null,null,5009,null,null,{"$f":"SUM(F229:F232)","v":0}]
[2,"З","Klay Thompson","GSW","Шар",0,null,null,null,4892,null,null,{"$f":"SUM(M223:M224)","v":0}]
[5,"З","Garrison Mathews","HOU","Шар",0,null,null,null,6259]
[4,"Ф","LeBron James","LAL","Шар",0,null,null,null,3704]
[10,"Ф","DeMar DeRozan","CHI","Шар",0,null,null,null,4614]
[6,"Ф","Marcus Morris Sr.","LAC","Шар",0,null,null,null,4895,null,null," "]
[7,"Ф","Terrence Ross","ORL","Шар",0,null,null,null,5014]
[8,"Ц","Karl-Anthony Towns","MIN","Шар",0,null,null,null,5432]
[9,"Ц","Hassan Whiteside","UTA","Шар",0,null,null,null,4764]
[1,"З","Shai Gilgeous-Alexander","OKC","Юта",0,null,null,null,6022,null,null,{"$f":"SUM(F233:F238)+N233","v":0}]
[2,"Ф","Jaylen Brown","BOS","Юта",0,null,null,null,5602,null,null,{"$f":"SUM(F239:F242)","v":0}]
[3,"З","Tyrese Haliburton","IND","Юта",0,null,null,null,6404,null,null,{"$f":"SUM(M233:M234)","v":0}]
[4,"З","Jaden Ivey","DET","Юта",0,null,null,null,6695]
[6,"З","Ayo Dosunmu","CHI","Юта",0,null,null,null,6580]
[9,"Ф","Keldon Johnson","SAS","Юта",0,null,null,null,6217]
[5,"Ф","Mikal Bridges","PHO","Юта",0,null,null,null,6021]
[7,"Ф","Reggie Bullock","DAL","Юта",0,null,null,null,5195]
[8,"Ц","Jeremiah Robinson-Earl","OKC","Юта",0,null,null,null,6574]
[10,"Ц","Kristaps Porzingis","WAS","Юта",0,null,null,null,5464]

{"sheet":"Игры НБА","index":1,"n_rows":0,"n_cols":0,"rows_kept":0,"cut":false,"hidden":false,"merged":[]}

{"sheet":"Расписание","index":2,"n_rows":30,"n_cols":12,"rows_kept":30,"cut":false,"hidden":false,"merged":[]}
["IND","SAS",null,"22.10.2022|02:00","ATL",null,null,"2-й тур"]
["WAS","CHI",null,"22.10.2022|02:00","BOS",null,null,"ДЕНВЕР","-","МАЙАМИ","Ден","Май"]
["CHA","NOP",null,"22.10.2022|02:00","BKN",null,null,"ОРЛЕАН","-","САН-АНТОНИО","Н-О","С-А"]
["BKN","TOR",null,"22.10.2022|02:30","WAS",null,null,"ЧИКАГО","-","ВАШИНГТОН","Чик","Ваш"]
["ATL","ORL",null,"22.10.2022|02:30","GSW",null,null,"ОКЛАХОМА СИТИ","-","АТЛАНТА","Окл","Атл"]
["NYK","DET",null,"22.10.2022|02:30","DAL",null,null,"ФИЛАДЕЛЬФИЯ","-","МИЛУОКИ","Фил","Мил"]
["MIA","BOS",null,"22.10.2022|02:30","DEN",null,null,"ГОЛДЭН СТЭЙТ","-","САКРАМЕНТО","ГСУ","Сак"]
["HOU","MEM",null,"22.10.2022|03:00","DET",null,null,"МЕМФИС","-","ЛЭЙКЕРС","Мем","ЛАЛ"]
["MIN","UTA",null,"22.10.2022|03:00","IND",null,null,"ХЬЮСТОН","-","ИНДИАНА","Хью","Инд"]
["POR","PHX",null,"22.10.2022|05:00","CLE",null,null,"МИННЕСОТА","-","ОРЛАНДО","Мин","Орл"]
["GSW","DEN",null,"22.10.2022|05:00","LAC",null,null,"ШАРЛОТТ","-","ФИНИКС","Шар","Фин"]
["PHI","SAS",null,"23.10.2022|01:00","LAL",null,null,"ЮТА","-","БОСТОН","Юта","Бос"]
["IND","DET",null,"23.10.2022|02:00","MIA",null,null,"КЛИВЛЕНД","-","ДАЛЛАС","Клв","Дал"]
["ORL","BOS",null,"23.10.2022|02:00","MEM"]
["MIL","HOU",null,"23.10.2022|03:00","MIL"]
["MIA","TOR",null,"23.10.2022|03:00","MIN"]
["CHI","CLE",null,"23.10.2022|03:00","NYK"]
["DAL","MEM",null,"23.10.2022|03:30","NOP"]
["DEN","OKC",null,"23.10.2022|04:00","OKC"]
["SAC","LAC",null,"23.10.2022|05:00","ORL"]
["LAL","POR",null,"23.10.2022|22:30","POR"]
[null,null,null,null,"SAC"]
[null,null,null,null,"SAS"]
[null,null,null,null,"TOR"]
[null,null,null,null,"PHI"]
[null,null,null,null,"PHX"]
[null,null,null,null,"HOU"]
[null,null,null,null,"CHI"]
[null,null,null,null,"CHA"]
[null,null,null,null,"UTA"]